[Event "Titled Tuesday Blitz March 15 Late 2022"]
[White "Cagara, Paulina"]
[Black "Donatti, Alvaro"]
[WhiteFideId "1124870"]
[BlackFideId "3000303"]
[WhiteElo "1780"]
[BlackElo "2138"]
[Result "0-1"]
[Round "10"]
[TimeControl "180+1"]
[Date "2022.03.16"]
[WhiteClock "0:01:27"]
[BlackClock "0:01:29"]

1. e4 {[%clk 0:02:59]}  c5 {[%clk 0:03:00]} 2. Nc3 {[%clk 0:02:57]}  e6 {[%clk 0:02:59]} 3. g3 {[%clk 0:02:57]}  d5 {[%clk 0:02:59]} 4. exd5 {[%clk 0:02:56]}  exd5 {[%clk 0:02:58]} 5. d4 {[%clk 0:02:56]}  cxd4 {[%clk 0:02:57]} 6. Qxd4 {[%clk 0:02:56]}  Nc6 {[%clk 0:02:57]} 7. Qxd5 {[%clk 0:02:55]}  Be6 {[%clk 0:02:55]} 8. Qxd8+ {[%clk 0:02:54]}  Rxd8 {[%clk 0:02:55]} 9. Bb5 {[%clk 0:02:50]}  Nf6 {[%clk 0:02:53]} 10. Nge2 {[%clk 0:02:50]}  Bc5 {[%clk 0:02:51]} 11. O-O {[%clk 0:02:47]}  Ke7 {[%clk 0:02:51]} 12. Bg5 {[%clk 0:02:43]}  h6 {[%clk 0:02:49]} 13. Bxf6+ {[%clk 0:02:42]}  gxf6 {[%clk 0:02:49]} 14. Rfe1 {[%clk 0:02:40]}  Nb4 {[%clk 0:02:45]} 15. Ba4 {[%clk 0:02:39]}  Rd2 {[%clk 0:02:38]} 16. Nf4 {[%clk 0:02:28]}  Nxc2 {[%clk 0:02:35]} 17. Bxc2 {[%clk 0:02:26]}  Bxf2+ {[%clk 0:02:31]} 18. Kh1 {[%clk 0:02:25]}  Bxe1 {[%clk 0:02:30]} 19. Rxe1 {[%clk 0:02:24]}  Rxc2 {[%clk 0:02:29]} 20. Ncd5+ {[%clk 0:02:23]}  Kd6 {[%clk 0:02:25]} 21. Nxf6 {[%clk 0:02:22]}  Rxb2 {[%clk 0:02:22]} 22. a4 {[%clk 0:02:21]}  Rc8 {[%clk 0:02:20]} 23. Rd1+ {[%clk 0:02:11]}  Ke7 {[%clk 0:02:07]} 24. N6d5+ {[%clk 0:02:05]}  Bxd5+ {[%clk 0:02:07]} 25. Nxd5+ {[%clk 0:02:04]}  Kf8 {[%clk 0:02:06]} 26. Ne3 {[%clk 0:01:46]}  Re8 {[%clk 0:01:58]} 27. Nf5 {[%clk 0:01:42]}  h5 {[%clk 0:01:46]} 28. h3 {[%clk 0:01:41]}  Kg8 {[%clk 0:01:41]} 29. g4 {[%clk 0:01:30]}  hxg4 {[%clk 0:01:39]} 30. Rg1 {[%clk 0:01:28]}  Ree2 {[%clk 0:01:34]} 31. Rxg4+ {[%clk 0:01:27]}  Kf8 {[%clk 0:01:29]} 0-1


[Site "https://www.chess.com"]

[Event "Titled Tuesday Blitz March 15 Late 2022"]
[White "Chigaev, Maksim"]
[Black "Grischuk, Alexander"]
[WhiteFideId "4108116"]
[BlackFideId "4126025"]
[WhiteElo "2502"]
[BlackElo "2762"]
[Result "0-1"]
[Round "10"]
[TimeControl "180+1"]
[Date "2022.03.15"]
[WhiteClock "0:00:02"]
[BlackClock "0:01:31"]

1. d4 {[%clk 0:03:00]}  e6 {[%clk 0:02:59]} 2. Nf3 {[%clk 0:03:00]}  c5 {[%clk 0:02:59]} 3. e4 {[%clk 0:02:54]}  cxd4 {[%clk 0:02:59]} 4. Nxd4 {[%clk 0:02:55]}  Nc6 {[%clk 0:02:57]} 5. Nc3 {[%clk 0:02:54]}  Nf6 {[%clk 0:02:57]} 6. a3 {[%clk 0:02:45]}  Be7 {[%clk 0:02:48]} 7. Be3 {[%clk 0:02:43]}  O-O {[%clk 0:02:47]} 8. f4 {[%clk 0:02:44]}  d6 {[%clk 0:02:46]} 9. Qf3 {[%clk 0:02:44]}  e5 {[%clk 0:02:44]} 10. Nf5 {[%clk 0:02:29]}  Bxf5 {[%clk 0:02:42]} 11. exf5 {[%clk 0:02:29]}  d5 {[%clk 0:02:36]} 12. fxe5 {[%clk 0:01:31]}  Nxe5 {[%clk 0:02:37]} 13. Qh3 {[%clk 0:01:29]}  Nfg4 {[%clk 0:02:17]} 14. Bd4 {[%clk 0:01:12]}  Bh4+ {[%clk 0:02:17]} 15. Kd1 {[%clk 0:01:08]}  Bf2 {[%clk 0:02:08]} 16. Bxe5 {[%clk 0:01:05]}  Nxe5 {[%clk 0:02:09]} 17. Bd3 {[%clk 0:01:03]}  Qg5 {[%clk 0:01:55]} 18. Rf1 {[%clk 0:00:49]}  Ng4 {[%clk 0:01:48]} 19. Nxd5 {[%clk 0:00:46]}  Rad8 {[%clk 0:01:47]} 20. f6 {[%clk 0:00:30]}  g6 {[%clk 0:01:48]} 21. c4 {[%clk 0:00:19]}  b5 {[%clk 0:01:48]} 22. b3 {[%clk 0:00:09]}  bxc4 {[%clk 0:01:43]} 23. bxc4 {[%clk 0:00:10]}  Ne3+ {[%clk 0:01:32]} 24. Ke2 {[%clk 0:00:06]}  Nxd5 {[%clk 0:01:32]} 25. Kxf2 {[%clk 0:00:02]}  Nf4 {[%clk 0:01:31]} 0-1


[Site "https://www.chess.com"]

[Event "Titled Tuesday Blitz March 15 Late 2022"]
[White "Chyngyz, Sultai"]
[Black "Kohler, Aran"]
[WhiteFideId "13803158"]
[BlackFideId "1002856"]
[WhiteElo "1365"]
[BlackElo "2265"]
[Result "0-1"]
[Round "10"]
[TimeControl "180+1"]
[Date "2022.03.16"]
[WhiteClock "0:00:02"]
[BlackClock "0:00:43"]

1. e4 {[%clk 0:03:00]}  c6 {[%clk 0:02:57]} 2. d4 {[%clk 0:03:00]}  d5 {[%clk 0:02:57]} 3. exd5 {[%clk 0:02:56]}  cxd5 {[%clk 0:02:57]} 4. Bd3 {[%clk 0:02:53]}  a6 {[%clk 0:02:58]} 5. c3 {[%clk 0:02:52]}  Nc6 {[%clk 0:02:58]} 6. Bf4 {[%clk 0:02:51]}  Nf6 {[%clk 0:02:56]} 7. Qb3 {[%clk 0:02:51]}  e6 {[%clk 0:02:49]} 8. Nd2 {[%clk 0:02:50]}  Bd6 {[%clk 0:02:49]} 9. Bg3 {[%clk 0:02:46]}  O-O {[%clk 0:02:48]} 10. Ngf3 {[%clk 0:02:44]}  Re8 {[%clk 0:02:42]} 11. Ne5 {[%clk 0:02:43]}  Bxe5 {[%clk 0:02:40]} 12. dxe5 {[%clk 0:02:40]}  Nd7 {[%clk 0:02:40]} 13. Qc2 {[%clk 0:02:39]}  Ndxe5 {[%clk 0:02:31]} 14. Bxh7+ {[%clk 0:02:36]}  Kh8 {[%clk 0:02:31]} 15. h4 {[%clk 0:02:34]}  f5 {[%clk 0:02:16]} 16. f4 {[%clk 0:02:28]}  Ng4 {[%clk 0:02:08]} 17. Bg6 {[%clk 0:02:27]}  Rf8 {[%clk 0:01:50]} 18. Nf3 {[%clk 0:02:25]}  Qf6 {[%clk 0:01:35]} 19. h5 {[%clk 0:02:20]}  Ne3 {[%clk 0:01:33]} 20. Qe2 {[%clk 0:02:17]}  d4 {[%clk 0:01:33]} 21. cxd4 {[%clk 0:02:15]}  Nxd4 {[%clk 0:01:33]} 22. Nxd4 {[%clk 0:02:15]}  Qxd4 {[%clk 0:01:32]} 23. h6 {[%clk 0:02:13]}  Qb4+ {[%clk 0:01:16]} 24. Kf2 {[%clk 0:02:11]}  Ng4+ {[%clk 0:01:15]} 25. Kf1 {[%clk 0:02:08]}  gxh6 {[%clk 0:01:10]} 26. a4 {[%clk 0:02:00]}  Bd7 {[%clk 0:01:09]} 27. b3 {[%clk 0:01:53]}  Qxb3 {[%clk 0:01:07]} 28. Kg1 {[%clk 0:01:42]}  Kg7 {[%clk 0:01:03]} 29. Bh5 {[%clk 0:01:32]}  Qe3+ {[%clk 0:01:02]} 30. Qxe3 {[%clk 0:01:11]}  Nxe3 {[%clk 0:01:01]} 31. Bf2 {[%clk 0:01:11]}  Nd5 {[%clk 0:01:01]} 32. Bd4+ {[%clk 0:01:08]}  Kh7 {[%clk 0:00:59]} 33. Rd1 {[%clk 0:01:02]}  Bxa4 {[%clk 0:00:57]} 34. Re1 {[%clk 0:00:56]}  Bd7 {[%clk 0:00:56]} 35. Be5 {[%clk 0:00:52]}  Rac8 {[%clk 0:00:52]} 36. Rh3 {[%clk 0:00:42]}  Rc2 {[%clk 0:00:46]} 37. Rg3 {[%clk 0:00:18]}  Rg8 {[%clk 0:00:45]} 38. Rxg8 {[%clk 0:00:17]}  Kxg8 {[%clk 0:00:45]} 39. Bg6 {[%clk 0:00:17]}  Bc6 {[%clk 0:00:44]} 40. Rd1 {[%clk 0:00:02]}  a5 {[%clk 0:00:43]} 0-1


[Site "https://www.chess.com"]

[Event "Titled Tuesday Blitz March 15 Late 2022"]
[White "Ciolek, Andreas"]
[Black "Perez Torres, Nabi Isaias"]
[WhiteFideId "12906727"]
[BlackFideId "5120373"]
[WhiteElo "2215"]
[BlackElo "1755"]
[Result "0-1"]
[Round "10"]
[TimeControl "180+1"]
[Date "2022.03.16"]
[WhiteClock "0:00:08"]
[BlackClock "0:00:25"]

1. d4 {[%clk 0:03:00]}  Nf6 {[%clk 0:02:58]} 2. Nf3 {[%clk 0:03:00]}  g6 {[%clk 0:02:58]} 3. g3 {[%clk 0:02:59]}  Bg7 {[%clk 0:02:59]} 4. Bg2 {[%clk 0:02:59]}  O-O {[%clk 0:03:00]} 5. O-O {[%clk 0:03:00]}  d6 {[%clk 0:03:00]} 6. b3 {[%clk 0:03:00]}  c5 {[%clk 0:03:00]} 7. Bb2 {[%clk 0:02:59]}  cxd4 {[%clk 0:02:59]} 8. Nxd4 {[%clk 0:03:00]}  Nc6 {[%clk 0:02:51]} 9. Nxc6 {[%clk 0:02:45]}  bxc6 {[%clk 0:02:52]} 10. Bxc6 {[%clk 0:02:45]}  Bh3 {[%clk 0:02:53]} 11. Bg2 {[%clk 0:02:46]}  Bxg2 {[%clk 0:02:49]} 12. Kxg2 {[%clk 0:02:47]}  Qc7 {[%clk 0:02:43]} 13. c4 {[%clk 0:02:46]}  Qc6+ {[%clk 0:02:41]} 14. Kg1 {[%clk 0:02:46]}  Rfd8 {[%clk 0:02:39]} 15. Nc3 {[%clk 0:02:45]}  e6 {[%clk 0:02:30]} 16. Qc2 {[%clk 0:02:28]}  h5 {[%clk 0:02:28]} 17. h3 {[%clk 0:02:25]}  h4 {[%clk 0:02:19]} 18. g4 {[%clk 0:02:24]}  Nh7 {[%clk 0:02:10]} 19. Na4 {[%clk 0:02:20]}  e5 {[%clk 0:01:35]} 20. Rad1 {[%clk 0:02:13]}  Ng5 {[%clk 0:01:33]} 21. Kh2 {[%clk 0:02:12]}  Ne6 {[%clk 0:01:31]} 22. e3 {[%clk 0:02:09]}  Ng5 {[%clk 0:01:30]} 23. Rd5 {[%clk 0:01:55]}  Rac8 {[%clk 0:01:29]} 24. Qd1 {[%clk 0:01:46]}  Ne6 {[%clk 0:00:43]} 25. f4 {[%clk 0:01:16]}  Nc7 {[%clk 0:00:39]} 26. Rd3 {[%clk 0:00:56]}  exf4 {[%clk 0:00:31]} 27. Bxg7 {[%clk 0:00:55]}  Kxg7 {[%clk 0:00:32]} 28. exf4 {[%clk 0:00:54]}  d5 {[%clk 0:00:31]} 29. Qa1+ {[%clk 0:00:39]}  Kg8 {[%clk 0:00:30]} 30. Rfd1 {[%clk 0:00:39]}  Re8 {[%clk 0:00:23]} 31. Qd4 {[%clk 0:00:12]}  dxc4 {[%clk 0:00:22]} 32. R3d2 {[%clk 0:00:10]}  Ne6 {[%clk 0:00:21]} 33. Qf6 {[%clk 0:00:09]}  Qf3 {[%clk 0:00:21]} 34. f5 {[%clk 0:00:07]}  Qg3+ {[%clk 0:00:21]} 35. Kh1 {[%clk 0:00:07]}  Qxh3+ {[%clk 0:00:20]} 36. Kg1 {[%clk 0:00:07]}  Qxg4+ {[%clk 0:00:21]} 37. Kh1 {[%clk 0:00:06]}  Qh3+ {[%clk 0:00:20]} 38. Kg1 {[%clk 0:00:06]}  Nf4 {[%clk 0:00:20]} 39. fxg6 {[%clk 0:00:03]}  Nxg6 {[%clk 0:00:21]} 40. Rf2 {[%clk 0:00:02]}  Rc7 {[%clk 0:00:21]} 41. Rdf1 {[%clk 0:00:02]}  Rce7 {[%clk 0:00:20]} 42. Rg2 {[%clk 0:00:02]}  Kh7 {[%clk 0:00:19]} 43. Rxg6 {[%clk 0:00:01]}  fxg6 {[%clk 0:00:18]} 44. Qg5 {[%clk 0:00:02]}  Qg3+ {[%clk 0:00:16]} 45. Qxg3 {[%clk 0:00:02]}  hxg3 {[%clk 0:00:16]} 46. Kg2 {[%clk 0:00:03]}  cxb3 {[%clk 0:00:16]} 47. axb3 {[%clk 0:00:02]}  Re3 {[%clk 0:00:16]} 48. Rh1+ {[%clk 0:00:02]}  Kg7 {[%clk 0:00:16]} 49. Nc5 {[%clk 0:00:03]}  Rc3 {[%clk 0:00:16]} 50. Kh3 {[%clk 0:00:01]}  Rxc5 {[%clk 0:00:16]} 51. Kg4 {[%clk 0:00:02]}  Rh5 {[%clk 0:00:17]} 52. Rg1 {[%clk 0:00:02]}  g2 {[%clk 0:00:17]} 53. Rxg2 {[%clk 0:00:03]}  Re4+ {[%clk 0:00:17]} 54. Kf3 {[%clk 0:00:03]}  Rb4 {[%clk 0:00:18]} 55. Kf2 {[%clk 0:00:03]}  Rf5+ {[%clk 0:00:18]} 56. Kg1 {[%clk 0:00:04]}  Rxb3 {[%clk 0:00:19]} 57. Kh1 {[%clk 0:00:04]}  Rb6 {[%clk 0:00:19]} 58. Rg3 {[%clk 0:00:05]}  Re6 {[%clk 0:00:20]} 59. Rg2 {[%clk 0:00:04]}  Re4 {[%clk 0:00:21]} 60. Kh2 {[%clk 0:00:05]}  Kf6 {[%clk 0:00:21]} 61. Kh3 {[%clk 0:00:04]}  g5 {[%clk 0:00:22]} 62. Rg1 {[%clk 0:00:04]}  Rh4+ {[%clk 0:00:23]} 63. Kg2 {[%clk 0:00:04]}  Rff4 {[%clk 0:00:23]} 64. Kg3 {[%clk 0:00:04]}  Rhg4+ {[%clk 0:00:24]} 65. Kh2 {[%clk 0:00:05]}  Rxg1 {[%clk 0:00:25]} 66. Kh3 {[%clk 0:00:05]}  a5 {[%clk 0:00:25]} 67. Kh2 {[%clk 0:00:06]}  Rgg4 {[%clk 0:00:25]} 68. Kh3 {[%clk 0:00:07]}  Kf5 {[%clk 0:00:26]} 69. Kh2 {[%clk 0:00:07]}  Rf3 {[%clk 0:00:25]} 70. Kh1 {[%clk 0:00:08]}  Rh3# {[%clk 0:00:25]} 0-1


[Site "https://www.chess.com"]

[Event "Titled Tuesday Blitz March 15 Late 2022"]
[White "Deac, Bogdan-Daniel"]
[Black "Andreikin, Dmitry"]
[WhiteFideId "1226380"]
[BlackFideId "4158814"]
[WhiteElo "2646"]
[BlackElo "2736"]
[Result "0-1"]
[Round "10"]
[TimeControl "180+1"]
[Date "2022.03.15"]
[WhiteClock "0:00:04"]
[BlackClock "0:00:14"]

1. e4 {[%clk 0:03:00]}  c5 {[%clk 0:03:00]} 2. Nf3 {[%clk 0:03:00]}  e6 {[%clk 0:03:00]} 3. g3 {[%clk 0:03:00]}  Nc6 {[%clk 0:02:58]} 4. Bg2 {[%clk 0:03:00]}  Nf6 {[%clk 0:02:53]} 5. Qe2 {[%clk 0:02:59]}  d6 {[%clk 0:02:51]} 6. O-O {[%clk 0:02:59]}  e5 {[%clk 0:02:52]} 7. Nc3 {[%clk 0:02:55]}  Be7 {[%clk 0:02:49]} 8. Nd5 {[%clk 0:02:55]}  Nxd5 {[%clk 0:02:43]} 9. exd5 {[%clk 0:02:55]}  Nb4 {[%clk 0:02:36]} 10. c4 {[%clk 0:02:46]}  Bf5 {[%clk 0:02:33]} 11. Ne1 {[%clk 0:02:45]}  O-O {[%clk 0:02:27]} 12. d3 {[%clk 0:02:43]}  Bg6 {[%clk 0:02:20]} 13. a3 {[%clk 0:02:15]}  Na6 {[%clk 0:02:20]} 14. h4 {[%clk 0:01:43]}  Nc7 {[%clk 0:02:09]} 15. f4 {[%clk 0:01:25]}  exf4 {[%clk 0:02:03]} 16. Bxf4 {[%clk 0:01:17]}  Bf6 {[%clk 0:01:52]} 17. h5 {[%clk 0:01:12]}  Bf5 {[%clk 0:01:52]} 18. Bxd6 {[%clk 0:01:09]}  Qxd6 {[%clk 0:01:44]} 19. Rxf5 {[%clk 0:01:09]}  Qxg3 {[%clk 0:01:45]} 20. Nf3 {[%clk 0:00:50]}  Ne8 {[%clk 0:01:27]} 21. d4 {[%clk 0:00:25]}  cxd4 {[%clk 0:01:10]} 22. c5 {[%clk 0:00:17]}  Rc8 {[%clk 0:01:10]} 23. d6 {[%clk 0:00:10]}  g6 {[%clk 0:00:41]} 24. Rd5 {[%clk 0:00:10]}  Ng7 {[%clk 0:00:37]} 25. Qf2 {[%clk 0:00:09]}  Nxh5 {[%clk 0:00:31]} 26. Rxh5 {[%clk 0:00:03]}  Qxf2+ {[%clk 0:00:31]} 27. Kxf2 {[%clk 0:00:04]}  gxh5 {[%clk 0:00:32]} 28. b4 {[%clk 0:00:03]}  b6 {[%clk 0:00:28]} 29. Rc1 {[%clk 0:00:03]}  Rfd8 {[%clk 0:00:27]} 30. Bh3 {[%clk 0:00:02]}  Rc6 {[%clk 0:00:23]} 31. d7 {[%clk 0:00:02]}  bxc5 {[%clk 0:00:22]} 32. bxc5 {[%clk 0:00:03]}  Kf8 {[%clk 0:00:15]} 33. Ne1 {[%clk 0:00:03]}  Ke7 {[%clk 0:00:14]} 34. Nd3 {[%clk 0:00:03]}  Rxd7 {[%clk 0:00:14]} 35. Re1+ {[%clk 0:00:03]}  Kd8 {[%clk 0:00:14]} 36. Bxd7 {[%clk 0:00:04]}  Kxd7 {[%clk 0:00:15]} 37. Rh1 {[%clk 0:00:04]}  h4 {[%clk 0:00:15]} 38. Kf3 {[%clk 0:00:04]}  Re6 {[%clk 0:00:15]} 39. Nf4 {[%clk 0:00:03]}  Re3+ {[%clk 0:00:15]} 40. Kg4 {[%clk 0:00:04]}  Kc6 {[%clk 0:00:14]} 0-1


[Site "https://www.chess.com"]

[Event "Titled Tuesday Blitz March 15 Late 2022"]
[White "Drozdowski, Kacper"]
[Black "Niemann, Hans Moke"]
[WhiteFideId "1136720"]
[BlackFideId "2093596"]
[WhiteElo "2507"]
[BlackElo "2632"]
[Result "1-0"]
[Round "10"]
[TimeControl "180+1"]
[Date "2022.03.15"]
[WhiteClock "0:00:21"]
[BlackClock "0:00:09"]

1. e4 {[%clk 0:02:59]}  g6 {[%clk 0:03:00]} 2. d4 {[%clk 0:02:59]}  Bg7 {[%clk 0:03:01]} 3. Nc3 {[%clk 0:02:59]}  a6 {[%clk 0:03:00]} 4. f4 {[%clk 0:02:58]}  b5 {[%clk 0:03:00]} 5. Nf3 {[%clk 0:02:58]}  Bb7 {[%clk 0:03:00]} 6. Bd3 {[%clk 0:02:58]}  d6 {[%clk 0:03:01]} 7. O-O {[%clk 0:02:57]}  Nd7 {[%clk 0:03:01]} 8. Be3 {[%clk 0:02:56]}  e6 {[%clk 0:03:00]} 9. e5 {[%clk 0:02:54]}  Ne7 {[%clk 0:02:59]} 10. Ne4 {[%clk 0:02:54]}  Nf5 {[%clk 0:02:50]} 11. Bf2 {[%clk 0:02:53]}  h5 {[%clk 0:02:44]} 12. c3 {[%clk 0:02:52]}  Bf8 {[%clk 0:02:38]} 13. a4 {[%clk 0:02:49]}  d5 {[%clk 0:02:33]} 14. Neg5 {[%clk 0:02:33]}  b4 {[%clk 0:02:30]} 15. a5 {[%clk 0:02:21]}  bxc3 {[%clk 0:02:19]} 16. bxc3 {[%clk 0:02:22]}  Bc6 {[%clk 0:02:19]} 17. Qe2 {[%clk 0:02:20]}  Qc8 {[%clk 0:02:16]} 18. c4 {[%clk 0:02:10]}  Be7 {[%clk 0:02:16]} 19. cxd5 {[%clk 0:02:07]}  Bxd5 {[%clk 0:02:16]} 20. Bc4 {[%clk 0:02:01]}  c6 {[%clk 0:02:15]} 21. Rfc1 {[%clk 0:01:58]}  Qb7 {[%clk 0:02:13]} 22. Rab1 {[%clk 0:01:56]}  Qa7 {[%clk 0:02:13]} 23. Bxd5 {[%clk 0:01:42]}  cxd5 {[%clk 0:02:13]} 24. Rc6 {[%clk 0:01:37]}  O-O {[%clk 0:02:10]} 25. Rbc1 {[%clk 0:01:31]}  Rfb8 {[%clk 0:02:07]} 26. h3 {[%clk 0:01:24]}  Rb4 {[%clk 0:01:52]} 27. g4 {[%clk 0:01:23]}  hxg4 {[%clk 0:01:50]} 28. hxg4 {[%clk 0:01:24]}  Bxg5 {[%clk 0:01:46]} 29. gxf5 {[%clk 0:01:16]}  Bxf4 {[%clk 0:01:44]} 30. Rc7 {[%clk 0:01:15]}  Rb7 {[%clk 0:01:41]} 31. Rc8+ {[%clk 0:01:15]}  Nf8 {[%clk 0:01:29]} 32. Be3 {[%clk 0:01:14]}  Bxe3+ {[%clk 0:01:16]} 33. Qxe3 {[%clk 0:01:15]}  Rb1 {[%clk 0:00:56]} 34. Rxa8 {[%clk 0:01:01]}  Rxc1+ {[%clk 0:00:54]} 35. Qxc1 {[%clk 0:01:02]}  Qxa8 {[%clk 0:00:54]} 36. f6 {[%clk 0:00:54]}  Nh7 {[%clk 0:00:54]} 37. Qh6 {[%clk 0:00:51]}  Qf8 {[%clk 0:00:54]} 38. Qh4 {[%clk 0:00:50]}  Qd8 {[%clk 0:00:38]} 39. Kf2 {[%clk 0:00:47]}  Qf8 {[%clk 0:00:28]} 40. Kg3 {[%clk 0:00:47]}  Qb8 {[%clk 0:00:25]} 41. Qf4 {[%clk 0:00:35]}  Kh8 {[%clk 0:00:19]} 42. Qh6 {[%clk 0:00:33]}  Qf8 {[%clk 0:00:19]} 43. Qh4 {[%clk 0:00:33]}  Kg8 {[%clk 0:00:20]} 44. Kg2 {[%clk 0:00:31]}  Qd8 {[%clk 0:00:19]} 45. Qh6 {[%clk 0:00:31]}  Nxf6 {[%clk 0:00:17]} 46. exf6 {[%clk 0:00:30]}  Qxf6 {[%clk 0:00:17]} 47. Qe3 {[%clk 0:00:26]}  Qd8 {[%clk 0:00:17]} 48. Qc3 {[%clk 0:00:26]}  Kg7 {[%clk 0:00:13]} 49. Ne5 {[%clk 0:00:24]}  Qg5+ {[%clk 0:00:13]} 50. Kf2 {[%clk 0:00:25]}  Qf4+ {[%clk 0:00:12]} 51. Ke2 {[%clk 0:00:25]}  g5 {[%clk 0:00:13]} 52. Qe3 {[%clk 0:00:24]}  Qf5 {[%clk 0:00:11]} 53. Qd3 {[%clk 0:00:23]}  Qf4 {[%clk 0:00:08]} 54. Qe3 {[%clk 0:00:22]}  Qh4 {[%clk 0:00:09]} 55. Nf3 {[%clk 0:00:20]}  Qh1 {[%clk 0:00:07]} 56. Qxg5+ {[%clk 0:00:20]}  Kf8 {[%clk 0:00:08]} 57. Qd8+ {[%clk 0:00:20]}  Kg7 {[%clk 0:00:09]} 58. Qg5+ {[%clk 0:00:21]}  Kf8 {[%clk 0:00:09]} 59. Qd2 {[%clk 0:00:20]}  Qb1 {[%clk 0:00:07]} 60. Qc3 {[%clk 0:00:20]}  Qe4+ {[%clk 0:00:07]} 61. Kf2 {[%clk 0:00:21]}  f6 {[%clk 0:00:08]} 62. Qc8+ {[%clk 0:00:21]}  Kf7 {[%clk 0:00:08]} 63. Qxa6 {[%clk 0:00:21]}  Qc2+ {[%clk 0:00:08]} 64. Qe2 {[%clk 0:00:21]}  Qa4 {[%clk 0:00:09]} 65. Qd2 {[%clk 0:00:21]}  Ke7 {[%clk 0:00:09]} 66. Qc3 {[%clk 0:00:21]}  Kf7 {[%clk 0:00:07]} 67. Ke3 {[%clk 0:00:21]}  Kg6 {[%clk 0:00:07]} 68. Qd3+ {[%clk 0:00:21]}  Kg7 {[%clk 0:00:07]} 69. a6 {[%clk 0:00:21]}  Qa5 {[%clk 0:00:06]} 70. Kf2 {[%clk 0:00:21]}  Qa2+ {[%clk 0:00:06]} 71. Qe2 {[%clk 0:00:22]}  Qa5 {[%clk 0:00:07]} 72. Nd2 {[%clk 0:00:21]}  Qb6 {[%clk 0:00:06]} 73. Qd3 {[%clk 0:00:20]}  e5 {[%clk 0:00:07]} 74. Qa3 {[%clk 0:00:18]}  Qxd4+ {[%clk 0:00:06]} 75. Ke2 {[%clk 0:00:18]}  Qa7 {[%clk 0:00:06]} 76. Qd6 {[%clk 0:00:19]}  d4 {[%clk 0:00:03]} 77. Qc6 {[%clk 0:00:19]}  Kg6 {[%clk 0:00:03]} 78. Qb7 {[%clk 0:00:19]}  Qc5 {[%clk 0:00:03]} 79. a7 {[%clk 0:00:19]}  d3+ {[%clk 0:00:04]} 80. Kxd3 {[%clk 0:00:19]}  Qd4+ {[%clk 0:00:05]} 81. Kc2 {[%clk 0:00:20]}  Qc5+ {[%clk 0:00:05]} 82. Kb1 {[%clk 0:00:19]}  Qg1+ {[%clk 0:00:05]} 83. Ka2 {[%clk 0:00:19]}  Qd4 {[%clk 0:00:05]} 84. Qe4+ {[%clk 0:00:18]}  Qxe4 {[%clk 0:00:05]} 85. Nxe4 {[%clk 0:00:19]}  f5 {[%clk 0:00:05]} 86. a8=Q {[%clk 0:00:19]}  fxe4 {[%clk 0:00:06]} 87. Qxe4+ {[%clk 0:00:19]}  Kf6 {[%clk 0:00:07]} 88. Kb3 {[%clk 0:00:20]}  Ke6 {[%clk 0:00:08]} 89. Kc4 {[%clk 0:00:20]}  Kf6 {[%clk 0:00:09]} 90. Kd5 {[%clk 0:00:21]}  Kf7 {[%clk 0:00:09]} 91. Kxe5 {[%clk 0:00:21]} 1-0


[Site "https://www.chess.com"]

[Event "Titled Tuesday Blitz March 15 Late 2022"]
[White "Eames, Robert S"]
[Black "Andrews, Todd"]
[WhiteFideId "408743"]
[BlackFideId "2012456"]
[WhiteElo "2105"]
[BlackElo "2301"]
[Result "0-1"]
[Round "10"]
[TimeControl "180+1"]
[Date "2022.03.16"]
[WhiteClock "0:00:58"]
[BlackClock "0:01:26"]

1. e4 {[%clk 0:02:58]}  c5 {[%clk 0:02:58]} 2. Nc3 {[%clk 0:02:57]}  d6 {[%clk 0:02:58]} 3. d4 {[%clk 0:02:57]}  cxd4 {[%clk 0:02:57]} 4. Qxd4 {[%clk 0:02:57]}  a6 {[%clk 0:02:56]} 5. b3 {[%clk 0:02:55]}  Nc6 {[%clk 0:02:56]} 6. Qd2 {[%clk 0:02:55]}  g6 {[%clk 0:02:54]} 7. Bb2 {[%clk 0:02:55]}  Bg7 {[%clk 0:02:54]} 8. O-O-O {[%clk 0:02:55]}  Nf6 {[%clk 0:02:47]} 9. f3 {[%clk 0:02:54]}  O-O {[%clk 0:02:47]} 10. Nge2 {[%clk 0:02:54]}  Qa5 {[%clk 0:02:42]} 11. Kb1 {[%clk 0:02:52]}  Be6 {[%clk 0:02:39]} 12. g4 {[%clk 0:02:50]}  Rfc8 {[%clk 0:02:37]} 13. h4 {[%clk 0:02:49]}  b5 {[%clk 0:02:30]} 14. h5 {[%clk 0:02:46]}  Ne5 {[%clk 0:02:20]} 15. Nd4 {[%clk 0:02:41]}  b4 {[%clk 0:02:14]} 16. Na4 {[%clk 0:02:18]}  Nxf3 {[%clk 0:01:56]} 17. Nxf3 {[%clk 0:02:06]}  Nxe4 {[%clk 0:01:55]} 18. Qe1 {[%clk 0:01:55]}  Nc3+ {[%clk 0:01:50]} 19. Bxc3 {[%clk 0:01:46]}  bxc3 {[%clk 0:01:50]} 20. hxg6 {[%clk 0:01:38]}  hxg6 {[%clk 0:01:50]} 21. Qh4 {[%clk 0:01:13]}  Rab8 {[%clk 0:01:41]} 22. Bd3 {[%clk 0:01:10]}  Qxa4 {[%clk 0:01:38]} 23. Qh7+ {[%clk 0:01:06]}  Kf8 {[%clk 0:01:37]} 24. Ng5 {[%clk 0:01:06]}  Bxb3 {[%clk 0:01:34]} 25. cxb3 {[%clk 0:00:58]}  Rxb3+ {[%clk 0:01:26]} 0-1


[Site "https://www.chess.com"]